bitfinex/quotes_SOLUSD_20220218
["timestamp","ask_amount","ask_price","bid_price","bid_amount"]
[1645199448967,109.09528693,90.591,90.477,50.21507425]
[1645199449169,6.25,90.59,90.49,16.5781]
[1645199449367,6.0,90.59,90.491,121.622]
[1645199449568,5.522,90.667,90.493,110.1]
[1645199449771,6.0,90.633,90.495,110.1]
[1645199450071,6.0,90.633,90.501,110.1]
[1645199450269,110.1,90.631,90.503,110.1]
[1645199450469,110.1,90.629,90.521,50.98412756]
[1645199450669,110.1,90.629,90.522,6.25]
[1645199450871,110.1,90.627,90.522,6.25]
[1645199451074,110.1,90.625,90.522,6.25]
[1645199451274,110.1,90.623,90.522,6.25]
[1645199451473,0.25,90.622,90.53,16.5707]
[1645199451672,110.1,90.621,90.53,16.5707]
[1645199451973,110.1,90.617,90.53,16.5707]
[1645199452171,110.1,90.615,90.53,16.5707]
[1645199452374,6.25,90.616,90.53,16.5707]
[1645199452375,110.1,90.613,90.53,16.5707]
[1645199452572,110.1,90.611,90.53,16.5707]
[1645199452773,110.1,90.609,90.53,16.5707]
[1645199452971,6.25,90.608,90.53,16.5707]
[1645199453272,110.1,90.607,90.53,16.5707]
[1645199453472,110.1,90.605,90.511,5.519]
[1645199453674,110.1,90.603,90.511,5.519]
[1645199453971,110.1,90.601,90.511,5.519]
[1645199454172,110.1,90.599,90.511,5.519]
[1645199454372,43.12457534,90.598,90.512,46.28428137]
[1645199454575,43.12457534,90.598,90.52,16.5739]
[1645199455773,110.1,90.597,90.52,16.5739]
[1645199455975,0.25,90.596,90.52,16.5739]
[1645199456375,6.25,90.596,90.52,16.5739]
[1645199456776,110.1,90.595,90.515,2.2445326]
[1645199457085,110.1,90.585,90.515,2.2445326]
[1645199457276,110.1,90.583,90.515,2.2445326]
[1645199457477,110.1,90.581,90.515,2.2445326]
[1645199457675,110.1,90.579,90.515,2.2445326]
[1645199457876,110.1,90.577,90.516,40.85452531]
[1645199458175,110.1,90.575,90.516,40.85452531]
[1645199458376,110.1,90.573,90.516,40.85452531]
[1645199458575,51.86724061,90.578,90.516,40.85452531]
[1645199459377,110.1,90.577,90.515,2.2445326]
[1645199459577,110.1,90.575,90.515,2.2445326]
[1645199459776,110.1,90.573,90.515,2.2445326]
[1645199459983,110.1,90.571,90.515,2.2445326]
[1645199460184,110.1,90.569,90.515,2.2445326]
[1645199460380,16.5836,90.56,90.515,2.2445326]
[1645199460578,110.1,90.555,90.44,55.2826]
[1645199460782,110.1,90.549,90.436,113.9]
[1645199460982,64.52,90.542,90.436,113.9]
[1645199461282,174.62,90.535,90.409,2.6293831]
[1645199461481,224.59523438,90.533,90.41,49.18201948]
[1645199461684,64.52,90.506,90.41,49.18201948]
[1645199461881,46.83374345,90.509,90.41,49.18201948]
[1645199461882,186.397,90.505,90.41,49.18201948]
[1645199462881,16.5976,90.48,90.41,49.18201948]
[1645199463081,110.1,90.477,90.41,49.18201948]
[1645199463283,110.1,90.475,90.41,49.18201948]
[1645199463483,110.1,90.475,90.375,2.6293831]
[1645199463484,110.1,90.473,90.37,55.3196]
[1645199463683,6.25,90.474,90.337,5.529]
[1645199463684,110.1,90.471,90.337,5.529]
[1645199463883,110.1,90.469,90.348,2.6293831]
[1645199464084,16.6031,90.44,90.36,16.6022]
[1645199464283,55.5934,90.47,90.35,55.3344]
[1645199464284,6.25,90.439,90.363,2.6293831]
[1645199464487,6.0,90.439,90.363,152.60638461]
[1645199464689,6.0,90.484,90.365,110.1]
[1645199464890,6.0,90.484,90.366,0.25]
[1645199465192,6.0,90.484,90.367,115.629]
[1645199465392,110.1,90.479,90.37,16.6014]
[1645199465591,110.1,90.477,90.37,16.6014]
[1645199465791,110.1,90.475,90.371,0.25]
[1645199465991,5.529,90.507,90.371,0.25]
[1645199465992,5.529,90.5,90.371,2.8793831]
[1645199466194,110.1,90.529,90.372,11.529]
[1645199466393,222.9444,90.609,90.372,11.529]
[1645199466394,16.6416,90.572,90.401,5.0]
[1645199466593,5.527,90.59,90.421,5.0]
[1645199466594,16.5813,90.57,90.421,5.0]
[1645199466893,64.52,90.586,90.441,5.0]
[1645199467192,41.94343486,90.569,90.452,159.57896281]
[1645199467393,41.94343486,90.569,90.454,110.1]
[1645199467593,41.94343486,90.569,90.456,110.1]
[1645199467795,69.8881,90.609,90.481,110.1]
[1645199467992,69.8881,90.609,90.48,16.5766]
[1645199467993,6.0,90.608,90.483,110.1]
[1645199468195,6.0,90.608,90.482,6.25]
[1645199468196,6.0,90.608,90.485,110.1]
[1645199468404,6.0,90.608,90.487,110.1]
[1645199468604,22.7871,90.609,90.491,110.1]
[1645199468811,51.10545365,90.608,90.493,151.55672332]
[1645199469012,51.10545365,90.608,90.495,110.1]
[1645199469305,51.10545365,90.608,90.521,42.50144497]
[1645199469706,110.1,90.606,90.521,42.50144497]
[1645199469903,6.0,90.605,90.521,42.50144497]
[1645199470308,6.0,90.605,90.53,16.5727]
[1645199470505,6.0,90.607,90.53,16.5727]
[1645199470706,0.25,90.606,90.53,16.5727]
[1645199470909,64.77,90.606,90.48,113.9]
[1645199471105,64.52,90.604,90.48,113.9]
[1645199471310,64.52,90.602,90.48,113.9]
[1645199471507,110.1,90.599,90.48,113.9]
[1645199471708,110.1,90.589,90.49,16.5791]
[1645199471908,39.98730687,90.587,90.49,16.5791]
[1645199472107,0.25,90.586,90.49,16.5791]
[1645199472308,0.25,90.586,90.491,0.25]
[1645199472707,0.25,90.586,90.482,0.25]
[1645199472910,110.35,90.586,90.482,0.25]
[1645199473308,64.52,90.578,90.5,16.5776]
[1645199473510,64.52,90.57,90.442,113.9]
[1645199473808,110.1,90.557,90.442,113.9]
[1645199474008,110.1,90.555,90.442,113.9]
[1645199474208,0.25,90.577,90.45,12.82]
[1645199474209,6.25,90.554,90.45,12.82]
[1645199474409,6.0,90.554,90.455,110.1]
[1645199474609,24.6598,90.583,90.454,55.47064764]
[1645199474610,24.6598,90.583,90.471,110.1]
[1645199474812,6.0,90.582,90.486,110.1]
[1645199475010,6.0,90.582,90.501,110.1]
[1645199475209,6.0,90.582,90.502,0.25]
[1645199475412,42.98245552,90.607,90.503,110.1]
[1645199475609,42.98245552,90.607,90.511,110.1]
[1645199475809,42.98245552,90.607,90.51,16.5726]
[1645199475810,42.98245552,90.607,90.521,43.90073137]
[1645199476009,42.98245552,90.607,90.53,12.82]
[1645199476411,110.1,90.606,90.53,12.82]
[1645199476610,110.1,90.606,90.493,2.6293831]
[1645199476810,110.1,90.599,90.51,16.5763]
[1645199477010,110.1,90.597,90.51,16.5763]
[1645199477213,110.1,90.595,90.51,16.5763]
[1645199477413,110.1,90.593,90.51,16.5763]
[1645199477612,110.1,90.593,90.496,110.1]
[1645199477613,57.50683969,90.592,90.511,46.18313404]
[1645199477811,51.50683969,90.592,90.52,16.5742]
[1645199478013,51.50683969,90.592,90.52,29.3942]
[1645199478812,5.521,90.629,90.52,29.3942]
[1645199478813,5.521,90.629,90.521,215.35]
[1645199479114,2.97797026,90.675,90.58,16.5595]
[1645199479313,2.97797026,90.694,90.591,110.1]
[1645199479515,6.25782467,90.708,90.6,12.82]
[1645199479713,6.25782467,90.708,90.61,12.82]
[1645199479916,48.08334684,90.707,90.62,12.82]
[1645199480113,48.08334684,90.707,90.63,12.82]
[1645199480315,48.08334684,90.707,90.63,29.3724]
[1645199480520,2.97797026,90.716,90.631,0.25]
[1645199480715,16.6528,90.724,90.631,2.8793831]
[1645199480914,16.6528,90.724,90.632,8.6293831]
[1645199481214,16.6528,90.724,90.64,16.5499]
[1645199481417,52.00846769,90.747,90.651,110.1]
[1645199481616,52.00846769,90.747,90.65,12.82]
[1645199481617,24.6593,90.759,90.652,6.25]
[1645199481815,24.6593,90.759,90.653,110.1]
[1645199482015,24.6593,90.759,90.655,110.1]
[1645199482216,24.6593,90.759,90.671,110.1]
[1645199482415,2.97797026,90.781,90.69,16.5392]
[1645199482619,50.14705744,90.78,90.7,12.82]
[1645199482817,50.14705744,90.78,90.71,12.82]
[1645199483122,51.41385418,90.766,90.71,12.82]
[1645199483432,51.41385418,90.766,90.68,12.82]
[1645199483825,51.41385418,90.766,90.681,0.25]
[1645199484029,2.97797026,90.813,90.681,110.35]
[1645199484328,2.97797026,90.822,90.682,6.0]
[1645199484528,5.511,90.821,90.683,0.25]
[1645199484827,5.511,90.824,90.683,2.8793831]
[1645199485028,44.68439367,90.765,90.684,60.80509722]
[1645199485229,44.68439367,90.765,90.7,16.5359]
[1645199485426,5.511,90.824,90.71,12.82]
[1645199485427,24.3034,90.823,90.71,12.82]
[1645199485631,5.51,90.822,90.71,12.82]
[1645199485831,24.3034,90.823,90.711,0.25]
[1645199486029,24.3034,90.823,90.711,2.8793831]
[1645199486229,110.1,90.822,90.71,12.82]
[1645199486429,51.58486962,90.759,90.71,12.82]
[1645199487229,0.25,90.758,90.71,12.82]
[1645199487830,0.25,90.758,90.69,12.82]
[1645199488029,6.25,90.758,90.69,12.82]
[1645199488232,6.0,90.758,90.69,12.82]
[1645199489232,5.511,90.757,90.676,5.83]
[1645199489531,6.0,90.758,90.676,5.83]
[1645199489532,6.25,90.756,90.676,5.83]
[1645199489731,6.0,90.755,90.677,54.36196505]
[1645199489931,0.25,90.754,90.677,54.36196505]
[1645199490334,0.25,90.754,90.676,5.83]
[1645199490537,0.25,90.754,90.677,40.63608395]
[1645199490738,0.25,90.754,90.676,5.83]
[1645199490739,110.1,90.752,90.676,5.83]
[1645199490944,110.1,90.75,90.676,5.83]
[1645199491142,6.25,90.749,90.676,5.83]
[1645199491344,48.62250366,90.729,90.677,42.37702626]
[1645199491544,6.25,90.728,90.677,42.37702626]
[1645199491745,6.25,90.749,90.677,42.37702626]
[1645199491746,6.0,90.727,90.677,42.37702626]
[1645199491943,0.25,90.726,90.677,42.37702626]
[1645199492143,6.25,90.749,90.677,42.37702626]
[1645199492343,0.25,90.749,90.677,42.37702626]
[1645199492744,6.0,90.757,90.677,42.37702626]
[1645199494347,0.25,90.756,90.677,42.37702626]
[1645199496158,0.25,90.756,90.66,12.82]
[1645199496359,115.611,90.755,90.66,12.82]
[1645199496561,115.611,90.755,90.63,16.5499]
[1645199496562,6.25,90.754,90.64,12.82]
[1645199496760,5.511,90.753,90.64,12.82]
[1645199496958,6.25,90.752,90.64,12.82]
[1645199497161,5.511,90.751,90.641,49.10326269]
[1645199497360,22.7995,90.75,90.641,51.73264579]
[1645199497561,16.7995,90.75,90.642,2.8793831]
[1645199497762,6.0,90.749,90.642,2.6293831]
[1645199497964,0.25,90.748,90.642,2.6293831]
[1645199498262,5.511,90.747,90.642,2.6293831]
[1645199498465,6.25,90.746,90.642,2.6293831]
[1645199498663,16.5516,90.74,90.642,2.6293831]
[1645199498863,45.52758714,90.738,90.642,2.6293831]
[1645199499064,5.763,90.737,90.641,49.10326269]
[1645199499263,6.0,90.736,90.641,49.10326269]
[1645199499464,5.763,90.735,90.641,49.10326269]
[1645199499664,116.1,90.734,90.641,49.10326269]
[1645199499863,110.1,90.732,90.641,49.10326269]
[1645199500065,110.1,90.73,90.641,49.10326269]
[1645199500266,6.25,90.729,90.641,49.10326269]
[1645199501666,6.25,90.729,90.642,110.1]
[1645199501866,6.25,90.729,90.643,0.25]
[1645199502065,0.25,90.729,90.644,110.1]
[1645199502273,0.25,90.736,90.645,0.25]
[1645199502474,0.25,90.737,90.646,110.1]
[1645199502673,0.25,90.737,90.661,110.1]
[1645199502878,0.25,90.737,90.66,12.82]
[1645199502879,0.25,90.737,90.662,45.03208297]
[1645199503079,6.0,90.737,90.662,45.03208297]
[1645199503876,16.5469,90.76,90.663,110.35]
[1645199504082,5.513,90.762,90.663,110.35]
[1645199504083,5.513,90.762,90.671,110.1]
[1645199504477,5.513,90.762,90.681,110.1]
[1645199504677,5.513,90.762,90.69,12.82]
[1645199504878,40.53950705,90.761,90.691,40.90957352]
[1645199505277,40.53950705,90.761,90.691,43.53895662]
[1645199505278,6.0,90.76,90.691,43.53895662]
[1645199505483,116.1,90.76,90.7,16.5391]
[1645199505679,0.25,90.759,90.691,40.65957352]
[1645199506680,0.25,90.759,90.68,12.82]
[1645199506883,0.25,90.759,90.66,12.82]
[1645199507089,0.25,90.759,90.64,12.82]
[1645199507384,48.4407,90.759,90.643,16.77443486]
[1645199507586,6.0,90.758,90.644,139.59868786]
[1645199507783,0.25,90.757,90.644,139.59868786]
[1645199507982,0.25,90.757,90.646,110.1]
[1645199508183,0.25,90.757,90.661,151.67858812]
[1645199508384,0.25,90.757,90.671,110.1]
[1645199508789,6.25317023,90.756,90.671,110.1]
[1645199508988,6.25,90.755,90.671,110.1]
[1645199509187,6.25317023,90.754,90.671,110.1]
[1645199509385,6.25,90.753,90.68,16.5442]
[1645199509591,6.25317023,90.752,90.69,12.82]
[1645199509787,6.25,90.751,90.69,12.82]
[1645199510188,0.25,90.751,90.69,12.82]
[1645199510387,6.0,90.758,90.69,12.82]
[1645199510388,6.0,90.758,90.691,0.25]
[1645199510588,2.97797026,90.769,90.691,110.35]
[1645199510789,2.97797026,90.769,90.692,2.6293831]
[1645199510989,2.97797026,90.776,90.693,110.35]
[1645199511193,2.97797026,90.786,90.695,110.1]
[1645199511391,2.97797026,90.786,90.697,110.1]
[1645199511591,50.07264497,90.772,90.711,110.1]
[1645199511789,2.97797026,90.791,90.72,16.5341]
[1645199511990,2.97797026,90.791,90.73,12.82]
[1645199512691,2.97797026,90.794,90.73,12.82]
[1645199512893,42.26864089,90.794,90.731,54.67030188]
[1645199513094,2.97797026,90.794,90.732,110.1]
[1645199513295,6.0,90.793,90.741,110.1]
[1645199513513,6.0,90.793,90.742,0.25]
[1645199513916,6.0,90.805,90.742,2.8793831]
[1645199514118,42.54677762,90.802,90.743,2.6293831]
[1645199514312,42.54677762,90.802,90.74,12.82]
[1645199514313,12.2495188,90.801,90.74,12.82]
[1645199514513,6.2495188,90.8,90.74,12.82]
[1645199514713,6.0,90.799,90.74,12.82]
[1645199515314,1.49750733,90.779,90.75,16.5302]
[1645199515512,1.49750733,90.782,90.751,48.55549793]
[1645199515714,1.49750733,90.784,90.751,48.55549793]
[1645199515913,1.49750733,90.781,90.75,16.5302]
[1645199516113,40.52896858,90.788,90.73,12.82]
[1645199516114,1.49750733,90.778,90.73,12.82]
[1645199516314,0.25,90.777,90.72,67.9319]
[1645199516517,1.49750733,90.775,90.73,16.5353]
[1645199516714,1.74750733,90.774,90.73,16.5353]
[1645199516914,56.29293758,90.773,90.731,44.05269746]
[1645199517113,56.29293758,90.773,90.73,16.5353]
[1645199517114,56.04293758,90.773,90.73,16.5353]
[1645199517318,6.25,90.772,90.71,12.82]
[1645199517518,1.49750733,90.769,90.703,2.6293831]
[1645199517717,1.49750733,90.762,90.69,12.82]
[1645199517915,1.49750733,90.757,90.69,12.82]
[1645199518117,1.49750733,90.765,90.704,110.1]
[1645199518317,0.25,90.764,90.711,110.1]
[1645199518519,1.49750733,90.771,90.712,0.25]
[1645199518718,1.49750733,90.773,90.712,23.12202805]
[1645199518922,1.49750733,90.773,90.715,110.1]
[1645199519129,1.49750733,90.78,90.73,12.82]
[1645199519321,1.49750733,90.771,90.731,47.37737927]
[1645199519721,1.49750733,90.768,90.731,47.37737927]
[1645199519923,1.49750733,90.772,90.732,0.25]
[1645199520124,1.49750733,90.778,90.73,12.82]
[1645199520325,1.49750733,90.766,90.71,16.5387]
[1645199520524,1.74750733,90.765,90.71,16.5387]
[1645199520724,1.49750733,90.761,90.693,16.7094]
[1645199520924,1.49750733,90.757,90.69,12.82]
[1645199521123,43.31751093,90.755,90.691,53.51275791]
[1645199521323,6.25,90.754,90.692,110.35]
[1645199521525,6.25,90.754,90.7,16.5414]
[1645199522926,6.25,90.754,90.691,53.51275791]
[1645199523126,7.74750733,90.754,90.691,53.51275791]
[1645199523527,1.49750733,90.75,90.691,53.51275791]
[1645199523726,6.25,90.749,90.691,53.51275791]
[1645199524129,1.49750733,90.746,90.676,2.6293831]
[1645199524333,1.49750733,90.742,90.655,20.86930476]
[1645199524628,111.59750733,90.74,90.664,16.6454]
[1645199524828,7.74750733,90.739,90.66,12.82]
[1645199525030,111.59750733,90.736,90.662,52.85813629]
[1645199525231,126.6507,90.73,90.662,52.85813629]
[1645199525430,110.1,90.728,90.662,52.85813629]
[1645199525631,110.1,90.726,90.662,52.85813629]
[1645199525831,6.25,90.725,90.676,44.89164266]
[1645199526230,6.25,90.725,90.651,2.6293831]
[1645199526432,1.49750733,90.721,90.651,2.6293831]
[1645199526639,7.74750733,90.72,90.651,2.6293831]
[1645199526837,6.25,90.719,90.651,2.6293831]
[1645199527034,6.25,90.719,90.667,16.6078]
[1645199527234,44.78072036,90.718,90.667,42.9124453]
[1645199527437,6.25,90.717,90.667,42.9124453]
[1645199528537,6.25,90.717,90.679,0.51712592]
[1645199528936,6.0,90.717,90.679,0.51712592]
[1645199529139,6.0,90.722,90.68,2.6293831]
[1645199529338,6.0,90.737,90.68,14.9493831]
[1645199529535,6.0,90.744,90.681,2.6293831]
[1645199529736,6.0,90.744,90.69,16.5439]
[1645199529935,51.82153685,90.743,90.69,16.5439]
[1645199530135,6.0,90.742,90.7,12.82]
[1645199530336,1.49750733,90.749,90.7,12.82]
[1645199530538,1.49750733,90.752,90.701,2.6293831]
[1645199530735,1.49750733,90.755,90.701,2.6293831]
[1645199531236,1.49750733,90.755,90.702,48.71044572]
[1645199531636,1.49750733,90.755,90.703,2.6293831]
[1645199531838,1.49750733,90.753,90.71,16.5393]
[1645199532038,1.49750733,90.754,90.71,29.3593]
[1645199532537,1.49750733,90.755,90.71,29.3593]
[1645199532735,0.25,90.754,90.71,29.3593]
[1645199533136,1.49750733,90.755,90.71,29.3593]
[1645199533741,1.49750733,90.754,90.71,29.3593]
[1645199534341,0.25,90.753,90.71,29.3593]
[1645199534744,0.25,90.754,90.71,12.82]
[1645199535142,1.49750733,90.755,90.71,12.82]
[1645199535342,1.49750733,90.759,90.711,2.8793831]
[1645199535542,1.49750733,90.764,90.711,2.6293831]
[1645199535745,1.49750733,90.76,90.71,12.82]
[1645199535942,1.49750733,90.759,90.71,12.82]
[1645199536143,1.49750733,90.76,90.71,12.82]
[1645199536342,0.25,90.759,90.71,12.82]
[1645199536544,6.0,90.76,90.711,110.35]
[1645199536743,6.0,90.76,90.72,16.5357]
[1645199536943,1.49750733,90.766,90.73,12.82]
[1645199537146,0.25,90.765,90.73,12.82]
[1645199537543,24.6263,90.78,90.73,12.82]
[1645199537544,1.49750733,90.771,90.731,52.05789437]
[1645199537945,1.49750733,90.768,90.731,52.05789437]
[1645199538644,1.49750733,90.769,90.731,52.05789437]
[1645199538844,1.74750733,90.768,90.731,52.05789437]
[1645199539046,1.49750733,90.77,90.731,52.05789437]
[1645199539246,1.49750733,90.77,90.73,12.82]
[1645199539445,1.49750733,90.765,90.712,0.51188343]
[1645199539847,1.49750733,90.76,90.712,0.51188343]
[1645199540047,1.49750733,90.759,90.712,0.51188343]
[1645199540248,48.72051681,90.758,90.712,0.51188343]
[1645199540450,0.25,90.757,90.712,0.51188343]
[1645199540647,1.49750733,90.753,90.712,0.51188343]
[1645199540850,6.25,90.752,90.712,0.51188343]
[1645199541647,0.25,90.752,90.712,0.51188343]
[1645199541847,0.25,90.756,90.712,0.51188343]
[1645199542048,0.25,90.757,90.712,0.51188343]
[1645199542449,0.25,90.758,90.712,0.51188343]
[1645199543055,0.25,90.758,90.711,53.89919146]
[1645199543056,0.25,90.758,90.711,0.51156583]
[1645199543250,1.74750733,90.758,90.711,0.51156583]
[1645199544051,1.49750733,90.756,90.711,51.42683882]
[1645199544251,0.25,90.758,90.711,51.42683882]
[1645199544252,0.25,90.755,90.711,51.42683882]
[1645199545551,1.49750733,90.753,90.711,51.42683882]
[1645199545751,0.25,90.752,90.711,51.42683882]
[1645199546151,1.49750733,90.756,90.711,51.42683882]
[1645199546354,1.49750733,90.758,90.711,51.42683882]
[1645199546553,1.49750733,90.757,90.711,51.42683882]
[1645199547378,1.49750733,90.762,90.72,16.5367]
[1645199547577,1.49750733,90.772,90.73,12.82]
[1645199547776,1.49750733,90.773,90.73,12.82]
[1645199547976,1.49750733,90.775,90.731,110.1]
[1645199548177,1.49750733,90.784,90.733,110.1]
[1645199548377,1.49750733,90.794,90.735,110.1]
[1645199548578,1.49750733,90.799,90.741,110.1]
[1645199548777,1.49750733,90.799,90.751,110.1]
[1645199548979,1.49750733,90.8,90.752,0.25]
[1645199549276,1.49750733,90.801,90.754,110.1]
[1645199549477,1.49750733,90.801,90.76,16.5273]
[1645199549678,1.49750733,90.798,90.77,12.82]
[1645199549979,1.49750733,90.793,90.76,12.82]
[1645199550380,1.49750733,90.795,90.76,12.82]
[1645199550578,0.25,90.794,90.76,12.82]
[1645199550778,1.74750733,90.794,90.76,12.82]
[1645199550979,0.25,90.794,90.76,12.82]
[1645199551381,0.25,90.794,90.76,29.3503]
[1645199551980,0.25,90.794,90.761,6.0]
[1645199552278,1.49750733,90.793,90.762,39.09539601]
[1645199552481,0.25,90.792,90.764,110.1]
[1645199552679,1.49750733,90.793,90.766,110.1]
[1645199552880,1.49750733,90.8,90.767,6.0]
[1645199553080,1.49750733,90.8,90.78,12.82]
[1645199553279,1.49750733,90.812,90.781,6.0]
[1645199553488,1.49750733,90.814,90.782,40.39750607]
[1645199553678,1.49750733,90.815,90.782,40.39750607]
[1645199553878,1.49750733,90.816,90.782,40.39750607]
[1645199554579,1.49750733,90.824,90.783,5.506]
[1645199554786,1.49750733,90.825,90.783,5.506]
[1645199554988,1.49750733,90.824,90.783,5.506]
[1645199555186,1.49750733,90.826,90.783,5.506]
[1645199555388,1.49750733,90.826,90.79,16.525]
[1645199555587,1.49750733,90.831,90.79,16.525]
[1645199555788,1.49750733,90.83,90.79,16.525]
[1645199555986,1.49750733,90.829,90.79,16.525]
[1645199556286,1.49750733,90.83,90.79,16.525]
[1645199557087,1.49750733,90.83,90.783,5.506]
[1645199557287,1.49750733,90.819,90.781,6.0]
[1645199557491,1.49750733,90.82,90.771,6.0]
[1645199557687,0.25,90.819,90.77,12.82]
[1645199557888,1.49750733,90.816,90.77,12.82]
[1645199558094,1.49750733,90.814,90.77,12.82]
[1645199558292,1.49750733,90.812,90.77,12.82]
[1645199558490,0.25,90.811,90.785,0.87231292]
[1645199559290,1.49750733,90.814,90.785,0.87231292]
[1645199559495,1.49750733,90.835,90.791,110.1]
[1645199559699,6.0,90.834,90.792,5.505]
[1645199559895,6.0,90.838,90.8,16.5226]
[1645199560098,6.0,90.844,90.81,12.82]
[1645199560297,6.0,90.845,90.81,12.82]
[1645199560895,6.0,90.849,90.81,12.82]
[1645199561396,7.49750733,90.849,90.81,29.3416]
[1645199561796,6.0,90.849,90.81,29.3416]
[1645199562006,6.0,90.85,90.81,29.3416]
[1645199562198,7.49750733,90.855,90.81,29.3416]
[1645199562698,6.0,90.855,90.81,29.3416]
[1645199562899,40.16686489,90.854,90.81,29.3416]
[1645199563096,1.49750733,90.851,90.81,12.82]
[1645199563297,1.49750733,90.847,90.793,0.87104463]
[1645199563499,1.49750733,90.844,90.793,0.87104463]
[1645199563697,6.25,90.843,90.794,5.505]
[1645199563897,6.25,90.843,90.795,47.96522725]
[1645199564097,6.25,90.843,90.796,5.505]
[1645199564300,6.0,90.842,90.796,5.505]
[1645199564499,0.25,90.841,90.796,5.505]
[1645199564700,6.0,90.846,90.796,5.505]
[1645199564901,7.49750733,90.846,90.797,2.6293831]
[1645199565102,6.0,90.846,90.798,5.505]
[1645199565304,6.0,90.85,90.798,5.505]
[1645199565503,6.0,90.853,90.8,16.5245]
[1645199565702,6.0,90.853,90.801,5.505]
[1645199565925,6.0,90.854,90.801,5.505]
[1645199566101,6.0,90.854,90.799,5.503]
[1645199566301,50.96185883,90.853,90.799,5.503]
[1645199566503,5.70675003,90.852,90.81,16.5224]
[1645199566703,6.0,90.854,90.811,115.603]
[1645199566904,6.0,90.854,90.812,0.25]
[1645199567211,1.49750733,90.872,90.814,110.1]
[1645199567404,1.49750733,90.874,90.818,110.1]
[1645199567605,1.49750733,90.874,90.831,110.1]
[1645199567807,1.49750733,90.881,90.833,110.1]
[1645199568004,1.49750733,90.886,90.834,0.25]
[1645199568205,1.49750733,90.887,90.835,5.502]
[1645199568404,1.49750733,90.893,90.836,0.25]
[1645199568605,22.7895,90.923,90.836,0.25]
[1645199568606,1.49750733,90.897,90.85,12.82]
[1645199568806,1.49750733,90.897,90.851,49.04635277]
[1645199569005,1.49750733,90.893,90.85,12.82]
[1645199569208,6.0,90.892,90.85,12.82]
[1645199569407,7.49750733,90.892,90.85,12.82]
[1645199569811,6.0,90.892,90.85,12.82]
[1645199570010,40.80763298,90.891,90.851,39.088984]
[1645199570210,6.0,90.89,90.851,39.088984]
[1645199570613,0.25,90.889,90.851,39.088984]
[1645199571215,1.74750733,90.89,90.851,39.088984]
[1645199571419,6.0,90.889,90.85,12.82]
[1645199571714,0.25,90.888,90.85,12.82]
[1645199572415,0.25,90.888,90.851,44.43082374]
[1645199573313,0.25,90.888,90.852,0.86169788]
[1645199574730,1.49750733,90.887,90.852,0.86169788]
[1645199574930,6.25,90.886,90.852,0.86169788]
[1645199575535,0.25,90.886,90.852,0.86169788]
[1645199576331,7.49750733,90.887,90.852,0.86169788]
[1645199576731,1.49750733,90.882,90.852,0.86169788]
[1645199576930,6.0,90.881,90.86,16.5129]
[1645199577130,5.35795945,90.857,90.852,0.86169788]
[1645199577933,6.0,90.881,90.852,0.86169788]
[1645199578133,0.25,90.88,90.852,0.86169788]
[1645199578330,0.25,90.88,90.85,29.3329]
[1645199579331,1.74750733,90.894,90.85,29.3329]